fUST/lending_fUST_20250201
["ID","MTS","AMOUNT","RATE_DAILY","PERIOD"]
[351194386,1738405842576,-207.762357,0.00016712,2]
[351194387,1738405842586,-500.0,0.00016712,2]
[351194388,1738405842595,-151.0,0.00016712,2]
[351194389,1738405842605,-500.0,0.00016712,2]
[351194390,1738405842615,-500.0,0.00016712,2]
[351194391,1738405842625,-500.0,0.00016712,2]
[351194392,1738405842636,-151.0,0.00016712,2]
[351194393,1738405842646,-501.43911918,0.00016712,2]
[351194394,1738405842655,-500.0,0.00016712,2]
[351194395,1738405842664,-500.0,0.00016712,2]
[351194396,1738405842683,-151.0,0.00016712,2]
[351194397,1738405842698,-151.0,0.00016712,2]
[351194398,1738405842709,-500.0,0.00016712,2]
[351194399,1738405842719,-151.0,0.00016712,2]
[351194400,1738405842728,-151.0,0.00016712,2]
[351194401,1738405842737,-151.0,0.00016712,2]
[351194402,1738405842746,-500.0,0.00016712,2]
[351194403,1738405842756,-220.716583,0.00016712,2]
[351194404,1738405842765,-220.716583,0.00016712,2]
[351194405,1738405842774,-500.0,0.00016712,2]
[351194406,1738405842783,-151.0,0.00016712,2]
[351194407,1738405842793,-227.5274508,0.00016712,2]
[351194408,1738405842803,-500.0,0.00016712,2]
[351194409,1738405842812,-151.0,0.00016712,2]
[351194410,1738405842821,-762.01,0.00016712,2]
[351194411,1738405842831,-151.0,0.00016712,2]
[351194412,1738405842840,-500.0,0.00016712,2]
[351194413,1738405842850,-562.91893009,0.00016712,2]
[351194414,1738405842859,-551.65,0.00016712,2]
[351194415,1738405842872,-151.0,0.00016712,2]
[351194416,1738405842882,-151.0,0.00016712,2]
[351194417,1738405842892,-500.0,0.00016712,2]
[351194418,1738405842902,-500.0,0.00016712,2]
[351194419,1738405842911,-500.0,0.00016712,2]
[351194420,1738405842921,-151.0,0.00016712,2]
[351194421,1738405842931,-500.0,0.00016712,2]
[351194422,1738405842943,-500.0,0.00016712,2]
[351194423,1738405842952,-500.0,0.00016712,2]
[351194424,1738405842962,-500.0,0.00016712,2]
[351194425,1738405842972,-500.0,0.00016712,2]
[351194426,1738405842982,-151.0,0.00016712,2]
[351194427,1738405842991,-500.0,0.00016712,2]
[351194428,1738405843000,-3010.14,0.00016712,2]
[351194430,1738405843010,-500.0,0.00016712,2]
[351194431,1738405843020,-712.15,0.00016712,2]
[351194433,1738405843031,-1667.53,0.00016712,2]
[351194434,1738405843046,-500.0,0.00016712,2]
[351194435,1738405843067,-500.0,0.00016712,2]
[351194437,1738405843077,-500.0,0.00016712,2]
[351194438,1738405843087,-579.3160166,0.00016712,2]
[351194439,1738405843098,-500.0,0.00016712,2]
[351194440,1738405843110,-500.0,0.00016712,2]
[351194441,1738405843122,-500.0,0.00016712,2]
[351194442,1738405843131,-500.0,0.00016712,2]
[351194443,1738405843143,-500.0,0.00016712,2]
[351194444,1738405843154,-500.0,0.00016712,2]
[351194445,1738405843164,-500.0,0.00016712,2]
[351194446,1738405843174,-500.0,0.00016712,2]
[351194447,1738405843184,-151.0,0.00016712,2]
[351194448,1738405843194,-500.0,0.00016712,2]
[351194449,1738405843203,-1000.0,0.00016712,7]
[351194450,1738405843212,-151.0,0.00016712,2]
[351194451,1738405843222,-500.0,0.00016712,2]
[351194452,1738405843231,-151.0,0.00016712,2]
[351194453,1738405843240,-500.0,0.00016712,2]
[351194454,1738405843250,-500.0,0.00016712,2]
[351194455,1738405843259,-1460.11,0.00016712,2]
[351194456,1738405843269,-500.0,0.00016712,2]
[351194457,1738405843279,-297.50365162,0.00016712,2]
[351194458,1738405843288,-266.521218,0.00016712,2]
[351194459,1738405843384,-500.0,0.00016712,2]
[351194460,1738405843394,-266.521218,0.00016712,2]
[351194461,1738405843404,-500.0,0.00016712,2]
[351194462,1738405843414,-500.0,0.00016712,2]
[351194463,1738405843424,-529.56420561,0.00016712,2]
[351194464,1738405843433,-500.0,0.00016712,2]
[351194465,1738405843442,-500.0,0.00016712,2]
[351194466,1738405843451,-500.0,0.00016712,2]
[351194467,1738405843461,-500.0,0.00016712,2]
[351194468,1738405843470,-160.50478747,0.00016748,2]
[351194469,1738405843479,-501.97350522,0.00016748,2]
[351194470,1738405843488,-500.0,0.00016748,2]
[351194471,1738405843497,-472.84017149,0.00016757,2]
[351194472,1738405843508,-507.53954419,0.00016757,2]
[351194473,1738405843517,-969.07,0.00016848,2]
[351194474,1738405843526,-969.07,0.00016848,2]
[351194475,1738405843536,-500.0,0.00016848,2]
[351194476,1738405843546,-500.0,0.00016848,2]
[351194477,1738405843556,-500.0,0.00016849,2]
[351194478,1738405843565,-500.0,0.00016849,2]
[351194479,1738405843574,-500.0,0.00016849,2]
[351194480,1738405843583,-500.0,0.00016849,2]
[351194481,1738405843592,-500.0,0.00016849,2]
[351194482,1738405843601,-500.0,0.00016849,2]
[351194483,1738405843611,-500.0,0.00016849,2]
[351194484,1738405843622,-500.0,0.00016849,2]
[351194485,1738405843632,-500.0,0.00016849,2]
[351194486,1738405843641,-485.19832806,0.00016849,2]
[351194487,1738405843651,-500.0,0.00016849,2]
[351194488,1738405843660,-500.0,0.00016849,2]
[351194489,1738405843670,-500.0,0.00016849,2]
[351194490,1738405843679,-500.0,0.00016849,2]
[351194491,1738405843689,-500.0,0.00016849,2]
[351194492,1738405843698,-500.0,0.00016849,2]
[351194493,1738405843707,-762.01,0.00016849,2]
[351194494,1738405843716,-500.0,0.00016849,2]
[351194495,1738405843726,-551.65,0.00016849,2]
[351194496,1738405843735,-504.87,0.00016849,2]
[351194497,1738405843744,-488.90567202,0.00016849,2]
[351194498,1738405843754,-500.0,0.00016849,2]
[351194499,1738405843763,-447.16706452,0.00016849,2]
[351194500,1738405843773,-500.0,0.00016849,2]
[351194501,1738405843782,-500.0,0.00016849,2]
[351194502,1738405843792,-500.0,0.00016849,2]
[351194503,1738405843801,-500.0,0.00016849,2]
[351194504,1738405843811,-3010.14,0.00016849,2]
[351194505,1738405843820,-500.0,0.00016849,2]
[351194506,1738405843831,-712.15,0.00016849,2]
[351194507,1738405843841,-1667.53,0.00016849,2]
[351194508,1738405843850,-500.0,0.00016849,2]
[351194509,1738405843859,-500.0,0.00016849,2]
[351194510,1738405843873,-500.0,0.00016849,2]
[351194511,1738405843882,-500.0,0.00016849,2]
[351194512,1738405843892,-500.0,0.00016849,2]
[351194513,1738405843903,-500.0,0.00016849,2]
[351194514,1738405843913,-500.0,0.00016849,2]
[351194515,1738405843923,-500.0,0.00016849,2]
[351194516,1738405843933,-500.0,0.00016849,2]
[351194517,1738405843943,-500.0,0.00016849,2]
[351194518,1738405843953,-500.0,0.00016849,2]
[351194519,1738405843963,-500.0,0.00016849,2]
[351194520,1738405843973,-1000.0,0.00016849,7]
[351194521,1738405843983,-500.0,0.00016849,2]
[351194523,1738405843993,-500.0,0.00016849,2]
[351194524,1738405844002,-500.0,0.00016849,2]
[351194525,1738405844011,-1460.11,0.00016849,2]
[351194526,1738405844020,-500.0,0.00016849,2]
[351194527,1738405844030,-151.0,0.00016849,2]
[351194529,1738405844040,-500.0,0.00016849,2]
[351194531,1738405844050,-500.0,0.00016849,2]
[351194532,1738405844063,-500.0,0.00016849,2]
[351194533,1738405844072,-500.0,0.00016849,2]
[351194534,1738405844082,-156.30409175,0.00016868,2]
[351194535,1738405844092,-466.14973053,0.000169,2]
[351194536,1738405844102,-969.07,0.00016985,2]
[351194537,1738405844112,-506.57569823,0.00016986,2]
[351194538,1738405844125,-500.0,0.00016986,2]
[351194539,1738405844135,-500.0,0.00016986,2]
[351194540,1738405844145,-500.0,0.00016986,2]
[351194541,1738405844156,-500.0,0.00016986,2]
[351194542,1738405844165,-192.26313718,0.00016986,2]
[351194543,1738405844175,-500.0,0.00016986,2]
[351194544,1738405844184,-500.0,0.00016986,2]
[351194545,1738405844194,-151.0,0.00016986,2]
[351194546,1738405844204,-500.0,0.00016986,2]
[351194549,1738405844214,-151.0,0.00016986,2]
[351194551,1738405844223,-500.0,0.00016986,2]
[351194553,1738405844233,-500.0,0.00016986,2]
[351194555,1738405844242,-309.63,0.00016986,2]
[351194556,1738405844251,-762.01,0.00016986,2]
[351194557,1738405844260,-551.65,0.00016986,2]
[351194559,1738405844273,-151.0,0.00016986,2]
[351194560,1738405844287,-151.0,0.00016986,2]
[351194561,1738405844301,-500.0,0.00016986,2]
[351194562,1738405844314,-151.0,0.00016986,2]
[351194563,1738405844325,-500.0,0.00016986,2]
[351194564,1738405844339,-500.0,0.00016986,2]
[351194565,1738405844351,-151.0,0.00016986,2]
[351194567,1738405844366,-500.0,0.00016986,2]
[351194569,1738405844380,-3010.14,0.00016986,2]
[351194571,1738405844392,-500.0,0.00016986,2]
[351194572,1738405844407,-712.15,0.00016986,2]
[351194573,1738405844421,-1667.53,0.00016986,2]
[351194574,1738405844433,-500.0,0.00016986,2]
[351194575,1738405844447,-500.0,0.00016986,2]
[351194576,1738405844459,-500.0,0.00016986,2]
[351194577,1738405844471,-500.0,0.00016986,2]
[351194578,1738405844485,-500.0,0.00016986,2]
[351194579,1738405844499,-500.0,0.00016986,2]
[351194580,1738405844511,-500.0,0.00016986,2]
[351194581,1738405844522,-500.0,0.00016986,2]
[351194582,1738405844534,-500.0,0.00016986,2]
[351194583,1738405844546,-151.0,0.00016986,2]
[351194584,1738405844560,-500.0,0.00016986,2]
[351194585,1738405844573,-500.0,0.00016986,7]
[351194586,1738405844588,-151.0,0.00016986,2]
[351194587,1738405844602,-500.0,0.00016986,2]
[351194588,1738405844616,-151.0,0.00016986,2]
[351194589,1738405844630,-594.38,0.00016986,2]
[351194590,1738405844641,-1235.77216748,0.00016986,2]
[351194591,1738405844886,-500.0,0.00016438,2]
[351194592,1738405844897,-52.46227257,0.00016575,2]
[351194593,1738405845053,-447.53772743,0.00016575,2]
[351194594,1738405845066,-151.0,0.00016575,2]
[351194595,1738405845076,-151.0,0.00016575,2]
[351194596,1738405845086,-151.0,0.00016575,2]
[351194597,1738405845096,-151.0,0.00016849,2]
[351194598,1738405845107,-151.0,0.00016849,2]
[351194599,1738405845121,-158.862389,0.00016849,2]
[351194600,1738405845131,-224.33783252,0.00016986,2]
[351194601,1738405845140,-500.0,0.00016986,2]
[351194602,1738405845150,-266.521218,0.00016986,2]
[351194603,1738405845160,-266.521218,0.00016986,2]
[351194604,1738405845170,-500.0,0.00016986,2]
[351194605,1738405845179,-266.5036033,0.00016986,2]
[351194606,1738405845188,-500.0,0.00016986,2]
[351194607,1738405845198,-466.14973043,0.00017107,2]
[351194608,1738405845209,-151.0,0.00017123,2]
[351194609,1738405845220,-387.75734851,0.00017123,2]
[351194610,1738405845391,-500.0,0.00017123,2]
[351194611,1738405845409,-151.0,0.00017123,2]
[351194612,1738405845418,-500.0,0.00017123,2]
[351194613,1738405845428,-207.762357,0.00017123,2]
[351194614,1738405845438,-207.762357,0.00017123,2]
[351194615,1738405845447,-151.0,0.00017123,2]
[351194616,1738405845456,-500.0,0.00017123,2]
[351194617,1738405845466,-151.0,0.00017123,2]
[351194618,1738405845475,-151.0,0.00017123,2]
[351194619,1738405845484,-151.0,0.00017123,2]
[351194620,1738405845494,-151.0,0.00017123,2]
[351194621,1738405845503,-220.716583,0.00017123,2]
[351194622,1738405845513,-220.716583,0.00017123,2]
[351194623,1738405845523,-500.0,0.00017123,2]
[351194624,1738405845532,-153.40097,0.00017123,2]
[351194625,1738405845542,-151.0,0.00017123,2]
[351194626,1738405845552,-762.01,0.00017123,2]
[351194627,1738405845562,-151.0,0.00017123,2]
[351194628,1738405845571,-551.65,0.00017123,2]
[351194629,1738405845580,-500.0,0.00017123,2]
[351194630,1738405845590,-3010.14,0.00017123,2]
[351194631,1738405845600,-500.0,0.00017123,2]
[351194632,1738405845609,-712.15,0.00017123,2]
[351194633,1738405845620,-1667.53,0.00017123,2]
[351194634,1738405845630,-283.68150471,0.00017123,2]
[351194635,1738405845639,-500.0,0.00017123,2]
[351194636,1738405845648,-500.0,0.00017123,2]
[351194637,1738405845657,-500.0,0.00017123,2]
[351194638,1738405845668,-500.0,0.00017123,2]
[351194639,1738405845678,-500.0,0.00017123,2]
[351194640,1738405845687,-500.0,0.00017123,2]
[351194641,1738405845696,-1460.11,0.00017123,2]
[351194642,1738405845706,-500.0,0.00017123,2]
[351194643,1738405845715,-151.0,0.00017123,2]
[351194644,1738405845724,-500.0,0.00017123,2]
[351194645,1738405845733,-408.1402798,0.00017123,2]
[351194646,1738405845742,-151.0,0.00017123,2]
[351194647,1738405845752,-151.0,0.00017123,2]
[351194648,1738405845762,-500.0,0.00017164,2]
[351194649,1738405845771,-750.0397297,0.00017197,2]
[351194650,1738405845781,-969.07,0.00017259,2]
[351194651,1738405845790,-151.0,0.0001726,2]
[351194652,1738405845799,-154.725864,0.0001726,2]
[351194653,1738405845808,-151.0,0.0001726,2]
[351194654,1738405845818,-151.0,0.0001726,2]
[351194655,1738405845827,-151.0,0.0001726,2]
[351194656,1738405845836,-500.0,0.0001726,2]
[351194657,1738405845845,-500.0,0.0001726,2]
[351194658,1738405845855,-500.0,0.0001726,2]
[351194659,1738405845864,-493.58548819,0.0001726,2]
[351194660,1738405845875,-762.01,0.0001726,2]
[351194661,1738405845885,-551.65,0.0001726,2]
[351194662,1738405845894,-500.0,0.0001726,2]
[351194663,1738405845903,-3010.14,0.0001726,2]
[351194664,1738405845913,-451.88,0.0001726,2]
[351194665,1738405845922,-712.15,0.0001726,2]
[351194666,1738405845932,-1667.53,0.0001726,2]
[351194667,1738405845941,-500.0,0.0001726,2]
[351194668,1738405845951,-500.0,0.0001726,2]
[351194669,1738405845961,-500.0,0.0001726,2]
[351194670,1738405845970,-500.0,0.0001726,2]
[351194671,1738405845979,-500.0,0.0001726,2]
[351194672,1738405845988,-1460.11,0.0001726,2]
[351194673,1738405845998,-500.0,0.0001726,2]
[351194674,1738405846008,-500.0,0.0001726,2]
[351194675,1738405846018,-466.14973043,0.00017314,2]
[351194676,1738405846028,-969.07,0.00017396,2]
[351194677,1738405846037,-151.0,0.00017397,2]
[351194678,1738405846047,-228.378604,0.00017397,2]
[351194679,1738405846058,-500.0,0.00017397,2]
[351194680,1738405846068,-762.01,0.00017397,2]
[351194681,1738405846077,-551.65,0.00017397,2]
[351194682,1738405846086,-500.0,0.00017397,2]
[351194683,1738405846096,-3010.14,0.00017397,2]
[351194684,1738405846106,-712.15,0.00017397,2]
[351194685,1738405846117,-1667.53,0.00017397,2]
[351194686,1738405846127,-500.0,0.00017397,2]
[351194687,1738405846138,-500.0,0.00017397,2]
[351194688,1738405846148,-500.0,0.00017397,2]
[351194689,1738405846158,-500.0,0.00017397,2]
[351194690,1738405846168,-500.0,0.00017397,2]
[351194691,1738405846177,-1460.11,0.00017397,2]
[351194692,1738405846186,-500.0,0.00017397,2]
[351194693,1738405846196,-500.0,0.00017397,2]
[351194695,1738405846205,-466.14973043,0.00017521,2]
[351194696,1738405846214,-500.0,0.00017534,2]
[351194697,1738405846224,-762.01,0.00017534,2]
[351194698,1738405846233,-551.65,0.00017534,2]
[351194699,1738405846242,-490.11524201,0.00017534,2]
[351194700,1738405846252,-3010.14,0.00017534,2]
[351194701,1738405846261,-530.2753769,0.00017534,2]
[351194702,1738405846302,-181.8746231,0.00017534,2]
[351194704,1738405846312,-130.3886769,0.00017534,2]
[351194706,1738405846324,-786.248,0.00017534,2]
[351194707,1738405846336,-750.8933231,0.00017534,2]
[351194708,1738405846345,-293.56975987,0.00017534,2]
[351194711,1738406123215,214.204378,0.00013973,2]
[351194712,1738406127392,184.938302,0.00013699,2]
[351194804,1738407042872,-312.0,0.000157,2]
[351194805,1738407042881,-300.0,0.00015801,2]
[351194806,1738407042890,-4483.5,0.00015802,2]
[351194820,1738407097122,213.181591,0.00013973,2]
[351194821,1738407130759,184.799989,0.00013699,2]
[351194824,1738407391323,502.52,0.00018,30]
[351194827,1738407858513,179.368578,0.00015007,2]
[351194831,1738408014647,212.521881,0.00013973,2]
[351194832,1738408178147,184.767536,0.00013699,2]
[351194861,1738408232214,-300.0,0.00015312,2]
[351194862,1738408232223,-24900.0,0.00015313,2]
[351194863,1738408232232,-608.09712717,0.00015368,2]
[351194913,1738408237869,-10108.65647081,0.00015368,2]
[351194915,1738408237880,-1002.37178732,0.000155,2]
[351194918,1738408237890,-162.395015,0.00015559,2]
[351194920,1738408237900,-162.395015,0.00015568,2]
[351194922,1738408237909,-162.395015,0.00015577,2]
[351194923,1738408237918,-162.395015,0.00015585,2]
[351194926,1738408237928,-162.395015,0.00015594,2]
[351194928,1738408237937,-162.395015,0.00015603,2]
[351194930,1738408237947,-162.395015,0.00015611,2]
[351194931,1738408237958,-162.395015,0.0001562,2]
[351194933,1738408237968,-162.395015,0.00015629,2]
[351194935,1738408237977,-162.395015,0.00015637,2]
[351194937,1738408237986,-151.0,0.00015792,2]
[351194940,1738408237997,-814.23876252,0.00016437,2]
[351194942,1738408238006,-556.6,0.00016438,2]
[351194944,1738408238016,-500.0,0.00016438,2]
[351194946,1738408238026,-500.0,0.00016438,2]
[351194948,1738408238035,-500.0,0.00016438,2]
[351194950,1738408238045,-500.0,0.00016438,2]
[351194952,1738408238054,-500.0,0.00016438,2]
[351194954,1738408238063,-500.0,0.00016438,2]
[351194956,1738408238073,-1899.62,0.00016438,2]
[351194958,1738408238082,-500.0,0.00016438,2]
[351194960,1738408238092,-500.0,0.00016438,2]
[351194962,1738408238101,-1042.2,0.00016438,2]
[351194964,1738408238111,-500.0,0.00016438,2]
[351194966,1738408238120,-153.35,0.00016438,2]
[351194968,1738408238129,-754.31,0.00016438,2]
[351194969,1738408238138,-500.0,0.00016438,2]
[351194970,1738408238147,-275.11631026,0.00016438,7]
[351194971,1738408238156,-500.0,0.00016438,2]
[351194972,1738408238166,-191.21568797,0.00016438,2]
[351194973,1738408238175,-2034.67,0.00016438,2]
[351194974,1738408238184,-1738.136161,0.000165,2]
[351194975,1738408238194,-500.0,0.00016575,2]
[351194976,1738408238203,-500.0,0.00016575,2]
[351194977,1738408238212,-500.0,0.00016575,2]
[351194978,1738408238221,-1899.62,0.00016575,2]
[351194979,1738408238230,-500.0,0.00016575,2]
[351194980,1738408238239,-500.0,0.00016575,2]
[351194981,1738408238248,-1042.2,0.00016575,2]
[351194982,1738408238257,-607.47159789,0.00016575,2]
[351194983,1738408238266,-754.31,0.00016575,2]
[351194984,1738408238275,-500.0,0.00016575,2]
[351194985,1738408238284,-500.0,0.00016575,2]
[351194986,1738408238293,-2034.67,0.00016575,2]
[351194987,1738408238303,-155.666,0.0001665,2]
[351194989,1738408238312,-500.0,0.00016711,2]
[351194991,1738408238321,-500.0,0.00016712,2]
[351194993,1738408238331,-500.0,0.00016712,2]
[351194995,1738408238340,-500.0,0.00016712,2]
[351194997,1738408238349,-1899.62,0.00016712,2]
[351194999,1738408238359,-500.0,0.00016712,2]
[351195001,1738408238368,-500.0,0.00016712,2]
[351195003,1738408238377,-1042.2,0.00016712,2]
[351195005,1738408238387,-754.31,0.00016712,2]
[351195007,1738408238396,-500.0,0.00016712,2]
[351195010,1738408238406,-500.0,0.00016712,2]
[351195012,1738408238415,-2034.67,0.00016712,2]
[351195014,1738408238425,-681.67171142,0.00016749,2]
[351195016,1738408238434,-420.0,0.00016753,2]
[351195018,1738408238443,-500.0,0.00016847,2]
[351195020,1738408238453,-500.0,0.00016847,2]
[351195022,1738408238462,-500.0,0.00016847,2]
[351195024,1738408238472,-500.0,0.00016847,2]
[351195026,1738408238481,-343.30411691,0.00016847,2]
[351195028,1738408238490,-500.0,0.00016847,2]
[351195030,1738408238499,-500.0,0.00016847,2]
[351195032,1738408238508,-500.0,0.00016847,2]
[351195034,1738408238518,-335.95706165,0.00016847,2]
[351195036,1738408238528,-500.0,0.00016847,2]
[351195038,1738408238537,-500.0,0.00016847,2]
[351195040,1738408238546,-500.0,0.00016847,2]
[351195042,1738408238555,-304.83458635,0.00016847,2]
[351195044,1738408238564,-500.0,0.00016847,2]
[351195046,1738408238573,-267.3,0.00016847,2]
[351195048,1738408238583,-500.0,0.00016847,2]
[351195050,1738408238593,-500.0,0.00016847,2]
[351195052,1738408238602,-500.0,0.00016847,2]
[351195054,1738408238612,-500.0,0.00016847,2]
[351195056,1738408238621,-491.88238605,0.00016847,2]
[351195058,1738408238631,-500.0,0.00016847,2]
[351195060,1738408238640,-454.2808204,0.00016847,2]
[351195062,1738408238650,-425.14984783,0.00016847,2]
[351195064,1738408238659,-500.0,0.00016847,2]
[351195066,1738408238669,-500.0,0.00016847,2]
[351195068,1738408238679,-500.0,0.00016847,2]
[351195070,1738408238689,-500.0,0.00016847,2]
[351195072,1738408238697,-500.0,0.00016847,2]
[351195074,1738408238707,-500.0,0.00016847,2]
[351195076,1738408238717,-500.0,0.00016847,2]
[351195078,1738408238726,-500.0,0.00016847,2]
[351195080,1738408238735,-500.0,0.00016847,2]
[351195082,1738408238745,-500.0,0.00016847,2]
[351195084,1738408238756,-500.0,0.00016847,2]
[351195086,1738408238766,-500.0,0.00016847,2]
[351195088,1738408238775,-500.0,0.00016847,2]
[351195090,1738408238786,-500.0,0.00016847,2]
[351195092,1738408238795,-500.0,0.00016847,2]
[351195094,1738408238805,-500.0,0.00016847,2]
[351195096,1738408238813,-500.0,0.00016847,2]
[351195098,1738408238823,-500.0,0.00016847,2]
[351195100,1738408238832,-500.0,0.00016847,2]
[351195102,1738408238842,-500.0,0.00016847,2]
[351195104,1738408238851,-500.0,0.00016847,2]
[351195106,1738408238861,-500.0,0.00016847,2]
[351195108,1738408238874,-500.0,0.00016847,2]
[351195110,1738408238883,-500.0,0.00016847,2]
[351195112,1738408238893,-500.0,0.00016847,2]
[351195114,1738408238903,-229.24283761,0.00016847,2]
[351195116,1738408238914,-500.0,0.00016849,2]
[351195118,1738408238923,-500.0,0.00016849,2]
[351195120,1738408238932,-500.0,0.00016849,2]
[351195122,1738408238942,-1899.62,0.00016849,2]
[351195124,1738408238952,-500.0,0.00016849,2]
[351195126,1738408238961,-500.0,0.00016849,2]
[351195128,1738408238970,-1042.2,0.00016849,2]
[351195130,1738408238980,-754.31,0.00016849,2]
[351195132,1738408238989,-500.0,0.00016849,2]
[351195134,1738408238999,-500.0,0.00016849,2]
[351195136,1738408239008,-2034.67,0.00016849,2]
[351195138,1738408239018,-501.0,0.0001688,2]
[351195140,1738408239028,-403.99643331,0.000169,2]
[351195142,1738408239038,-500.0,0.00016985,2]
[351195144,1738408239048,-500.0,0.00016986,2]
[351195146,1738408239057,-500.0,0.00016986,2]
[351195148,1738408239072,-500.0,0.00016986,2]
[351195150,1738408239083,-1899.62,0.00016986,2]
[351195152,1738408239092,-500.0,0.00016986,2]
[351195154,1738408239101,-500.0,0.00016986,2]
[351195156,1738408239111,-1042.2,0.00016986,2]
[351195158,1738408239121,-754.31,0.00016986,2]
[351195160,1738408239130,-500.0,0.00016986,2]
[351195162,1738408239140,-500.0,0.00016986,2]
[351195164,1738408239149,-2034.67,0.00016986,2]
[351195166,1738408239159,-396.0,0.00017037,2]
[351195168,1738408239169,-403.99643303,0.00017107,2]
[351195170,1738408239178,-500.0,0.0001712,2]
[351195172,1738408239187,-500.0,0.00017123,2]
[351195174,1738408239197,-500.0,0.00017123,2]
[351195176,1738408239206,-500.0,0.00017123,2]
[351195178,1738408239216,-1899.62,0.00017123,2]
[351195180,1738408239225,-423.81762171,0.00017123,2]
[351195182,1738408239235,-500.0,0.00017123,2]
[351195184,1738408239243,-1042.2,0.00017123,2]
[351195186,1738408239252,-151.0,0.00017123,2]
[351195188,1738408239261,-754.31,0.00017123,2]
[351195190,1738408239271,-500.0,0.00017123,2]
[351195192,1738408239280,-179.692087,0.00017123,2]
[351195194,1738408239291,-151.0,0.00017123,2]
[351195196,1738408239305,-500.0,0.00017123,2]
[351195197,1738408239316,-151.0,0.00017123,2]
[351195200,1738408239326,-2034.67,0.00017123,2]
[351195202,1738408239336,-681.67171142,0.00017162,2]
[351195204,1738408239346,-500.0,0.00017164,2]
[351195205,1738408239355,-151.0,0.00017164,2]
[351195207,1738408239365,-151.0,0.00017164,2]
[351195209,1738408239378,-151.0,0.00017164,2]
[351195211,1738408239392,-500.0,0.00017259,2]
[351195213,1738408239401,-408.026,0.0001726,2]
[351195215,1738408239411,-151.0,0.0001726,2]
[351195217,1738408239420,-151.0,0.0001726,2]
[351195219,1738408239430,-151.0,0.0001726,2]
[351195221,1738408239439,-151.0,0.0001726,2]
[351195223,1738408239449,-500.0,0.0001726,2]
[351195225,1738408239459,-500.0,0.0001726,2]
[351195228,1738408239469,-500.0,0.0001726,2]
[351195231,1738408239478,-1899.62,0.0001726,2]
[351195232,1738408239487,-500.0,0.0001726,2]
[351195234,1738408239497,-1042.2,0.0001726,2]
[351195236,1738408239506,-754.31,0.0001726,2]
[351195238,1738408239515,-500.0,0.0001726,2]
[351195240,1738408239525,-2034.67,0.0001726,2]
[351195242,1738408239536,-500.0,0.00017272,2]
[351195244,1738408239545,-500.0,0.00017274,2]
[351195246,1738408239554,-151.0,0.00017275,2]
[351195248,1738408239563,-158.606841,0.00017275,2]
[351195250,1738408239573,-151.0,0.00017275,2]
[351195252,1738408239582,-403.99643303,0.00017314,2]
[351195254,1738408239592,-166.209885,0.00017317,2]
[351195257,1738408239602,-166.209885,0.00017317,2]